bitfinex-derivatives/quotes_BNBF0:USTF0_20260221
["timestamp","ask_amount","ask_price","bid_price","bid_amount"]
[1771640433814,1.19439215,628.68,628.45,0.31848305]
[1771640434015,1.19439215,628.68,628.46,0.31848305]
[1771640434316,1.19439215,628.68,628.47,0.31848305]
[1771640434518,1.19439215,628.68,628.48,0.31848305]
[1771640434718,1.19439215,628.68,628.49,0.31848305]
[1771640434918,1.19439215,628.68,628.5,0.31848305]
[1771640435218,1.19439215,628.72,628.51,0.31848305]
[1771640435418,1.19439215,628.71,628.52,0.31848305]
[1771640435619,1.19439215,628.71,628.53,0.31848305]
[1771640435918,1.19439215,628.71,628.54,0.31848305]
[1771640436113,1.19439215,628.71,628.35,1.197]
[1771640436315,1.19439215,628.71,628.36,0.31848324]
[1771640436514,1.19439215,628.71,628.35,1.197]
[1771640436515,1.19439215,628.71,628.37,0.31848324]
[1771640436718,1.19439215,628.71,628.38,0.31848324]
[1771640437013,1.19439215,628.7,628.39,0.31848324]
[1771640437213,1.19439215,628.69,628.4,0.31848324]
[1771640437517,1.19439215,628.69,628.41,0.31848324]
[1771640437712,1.19439215,628.69,628.42,0.31848324]
[1771640438017,1.19439215,628.69,628.43,0.31848324]
[1771640438216,1.19439215,628.69,628.44,0.31848324]
[1771640438418,1.19439215,628.69,628.45,0.31848324]
[1771640438717,1.19439215,628.69,628.46,0.31848324]
[1771640438918,1.19439215,628.69,628.47,0.31848324]
[1771640439220,1.19439215,628.69,628.48,0.31848324]
[1771640439415,1.19439215,628.69,628.49,0.31848324]
[1771640439613,1.19439215,628.69,628.5,0.31848324]
[1771640439817,1.19439215,628.69,628.51,0.31848324]
[1771640440112,1.19439215,628.69,628.52,0.31848324]
[1771640440414,1.19439215,628.69,628.53,0.31848324]
[1771640440615,1.19439215,628.69,628.35,1.197]
[1771640440814,1.19439215,628.69,628.36,0.31849114]
[1771640441014,1.19439215,628.69,628.37,0.31849114]
[1771640441215,1.19439215,628.69,628.35,1.197]
[1771640441216,1.19439215,628.69,628.38,0.31849114]
[1771640441418,1.19439215,628.69,628.39,0.31849114]
[1771640441620,1.19439215,628.69,628.4,0.31849114]
[1771640441819,1.19439215,628.69,628.41,0.31849114]
[1771640442017,1.19439215,628.69,628.42,0.31849114]
[1771640442321,1.19439215,628.69,628.43,0.31849114]
[1771640442621,1.19439215,628.69,628.44,0.31848706]
[1771640442920,1.19439215,628.69,628.45,0.31848706]
[1771640443122,1.19439215,628.69,628.46,0.31848706]
[1771640443321,1.19439215,628.69,628.47,0.31848706]
[1771640443519,1.19439215,628.69,628.48,0.31848706]
[1771640443717,1.19439215,628.69,628.49,0.31848706]
[1771640443919,1.19439215,628.69,628.5,0.31848706]
[1771640444119,1.19439215,628.68,628.51,0.31848706]
[1771640444317,1.19439215,628.68,628.52,0.31848706]
[1771640444520,1.19439215,628.68,628.53,0.31848706]
[1771640444818,1.19439215,628.68,628.54,0.31848706]
[1771640445024,1.19439215,628.68,628.55,0.31848706]
[1771640445221,1.19439215,628.67,628.35,1.197]
[1771640445422,1.19439215,628.67,628.36,0.31848706]
[1771640445724,1.19439215,628.67,628.37,0.31848706]
[1771640445921,1.19439215,628.67,628.38,0.31848706]
[1771640446120,1.19439215,628.67,628.39,0.31848706]
[1771640446320,1.19439215,628.67,628.35,1.197]
[1771640446321,1.19439215,628.67,628.4,0.31848706]
[1771640446526,1.19439215,628.67,628.41,0.31848706]
[1771640446724,1.19439215,628.67,628.42,0.31848706]
[1771640446922,1.19439215,628.67,628.43,0.31848706]
[1771640447125,1.19439215,628.67,628.44,0.31848706]
[1771640447326,1.19439215,628.67,628.45,0.31848706]
[1771640447626,1.19439215,628.67,628.46,0.31848706]
[1771640447820,1.19439215,628.67,628.35,1.197]
[1771640447821,1.19439215,628.67,628.47,0.31848706]
[1771640448025,1.19439215,628.67,628.48,0.31848706]
[1771640448226,1.19439215,628.67,628.49,0.31848706]
[1771640448423,1.19439215,628.67,628.5,0.31848706]
[1771640448629,1.19439215,628.67,628.51,0.31848706]
[1771640448926,1.19439215,628.67,628.52,0.31848706]
[1771640449128,1.19439215,628.66,628.53,0.31848706]
[1771640449423,1.19439215,628.66,628.54,0.31848706]
[1771640449623,1.19439215,628.66,628.55,0.31848706]
[1771640449923,1.19439215,628.66,628.56,0.31848706]
[1771640450122,1.19439215,628.66,628.35,1.197]
[1771640450327,1.19439215,628.66,628.36,0.31848784]
[1771640450623,1.19439215,628.66,628.37,0.31848784]
[1771640450822,1.19439215,628.66,628.38,0.31848784]
[1771640451023,1.19439215,628.66,628.39,0.31848784]
[1771640451228,1.19439215,628.65,628.4,0.31848784]
[1771640451428,1.19439215,628.65,628.41,0.31848784]
[1771640451729,1.19439215,628.65,628.42,0.31848784]
[1771640452025,1.19439215,628.65,628.43,0.31848784]
[1771640452228,1.19439215,628.65,628.44,0.31848784]
[1771640452425,1.19439215,628.65,628.45,0.31848784]
[1771640452625,1.19439215,628.65,628.46,0.31848784]
[1771640452825,1.19439215,628.65,628.47,0.31848784]
[1771640453030,1.19439215,628.65,628.48,0.31848784]
[1771640453325,1.19439215,628.59,628.49,0.31848784]
[1771640453528,1.19439215,628.59,628.5,0.31848784]
[1771640453730,1.19439215,628.59,628.51,0.31848784]
[1771640453929,1.19439215,628.59,628.52,0.31848784]
[1771640454129,1.19439215,628.59,628.53,0.31848784]
[1771640454330,1.19439215,628.59,628.54,0.31848784]
[1771640454531,1.19439215,628.58,628.35,1.197]
[1771640454727,1.19439215,628.58,628.36,0.31851249]
[1771640455030,1.19439215,628.58,628.37,0.31851249]
[1771640455231,1.19439215,628.59,628.38,0.31851249]
[1771640455428,1.19439215,628.59,628.39,0.31851249]
[1771640455730,1.19439215,628.59,628.4,0.31851249]
[1771640456030,1.19439215,628.59,628.35,1.197]
[1771640456031,1.19439215,628.59,628.41,0.31851249]
[1771640456330,1.19439215,628.59,628.42,0.31851249]
[1771640456531,1.19439215,628.59,628.43,0.31851249]
[1771640456731,1.19439215,628.59,628.44,0.31851249]
[1771640457027,1.19439215,628.59,628.45,0.31851249]
[1771640457326,1.19439215,628.59,628.46,0.31851249]
[1771640457627,1.19439215,628.59,628.47,0.31851249]
[1771640457830,1.19439215,628.59,628.48,0.31851249]
[1771640458026,1.19439215,628.59,628.49,0.31851249]
[1771640458231,1.19439215,628.59,628.5,0.31851249]
[1771640458431,1.19439215,628.59,628.51,0.31851249]
[1771640458631,1.19439215,628.59,628.52,0.31851249]
[1771640458826,1.19439215,628.59,628.53,0.31851249]
[1771640459028,1.19439215,628.59,628.54,0.31851249]
[1771640459226,1.19439215,628.59,628.35,1.197]
[1771640459427,1.19439215,628.59,628.36,0.31851217]
[1771640459630,1.19439215,628.59,628.37,0.31851217]
[1771640459933,1.19439215,628.59,628.38,0.31851217]
[1771640460130,1.19439215,628.59,628.39,0.31851217]
[1771640460330,1.19439215,628.59,628.4,0.31851217]
[1771640460630,1.19439215,628.59,628.41,0.31851217]
[1771640460932,1.19439215,628.59,628.42,0.31851217]
[1771640461134,1.19439215,628.59,628.43,0.31851217]
[1771640461329,1.19439215,628.59,628.35,1.197]
[1771640461330,1.19439215,628.59,628.44,0.31851217]
[1771640461533,1.19439215,628.59,628.45,0.31851217]
[1771640461729,1.19439215,628.59,628.46,0.31851217]
[1771640461933,1.19439215,628.59,628.47,0.31851217]
[1771640462232,1.19439215,628.59,628.48,0.31851217]
[1771640462431,1.19439215,628.59,628.49,0.31851217]
[1771640462633,1.19439215,628.59,628.5,0.31851217]
[1771640462834,1.19439215,628.59,628.51,0.31851217]
[1771640463130,1.19439215,628.6,628.52,0.31851217]
[1771640463330,1.19439215,628.6,628.53,0.31851217]
[1771640463535,1.19439215,628.6,628.54,0.31851217]
[1771640463731,1.19439215,628.6,628.01,1.18706635]
[1771640463934,1.19439215,628.6,628.02,0.31851179]
[1771640464234,1.19439215,628.6,628.03,0.31851179]
[1771640464434,1.19439215,628.6,628.04,0.31851179]
[1771640464631,1.19439215,628.6,628.01,1.18706635]
[1771640464632,1.19439215,628.6,628.05,0.31851179]
[1771640464930,1.19439215,628.6,628.01,1.18706635]
[1771640464931,1.19439215,628.6,628.06,0.31851179]
[1771640465135,1.19439215,628.6,628.07,0.31851179]
[1771640465332,1.19439215,628.58,628.08,0.31851179]
[1771640465536,1.19439215,628.58,628.09,0.31851179]
[1771640465731,1.19439215,628.58,628.1,0.31851179]
[1771640465934,1.19439215,628.58,628.11,0.31851179]
[1771640466133,1.19439215,628.58,628.12,0.31851179]
[1771640466332,1.19439215,628.58,628.13,0.31851179]
[1771640466533,1.19439215,628.58,628.14,0.31851179]
[1771640466733,1.19439215,628.58,628.15,0.31851179]
[1771640466934,1.19439215,628.58,628.16,0.31851179]
[1771640467137,1.19439215,628.58,628.17,0.31851179]
[1771640467336,1.19439215,628.59,628.18,0.31851179]
[1771640467540,1.19439215,628.59,628.19,0.31851179]
[1771640467738,1.19439215,628.59,628.14,1.63]
[1771640467739,1.19439215,628.59,628.2,0.31851179]
[1771640467936,1.19439215,628.59,628.21,0.31851179]
[1771640468139,1.19439215,628.59,628.22,0.31851179]
[1771640468433,1.19439215,628.59,628.23,0.31851179]
[1771640468634,1.19439215,628.59,628.24,0.31851179]
[1771640468837,1.19439215,628.59,628.25,0.31851179]
[1771640469036,1.19439215,628.59,628.26,0.31851179]
[1771640469239,1.19439215,628.59,628.27,0.31851179]
[1771640469438,1.19439215,628.59,628.28,0.31851179]
[1771640469738,1.19439215,628.59,628.29,0.31851179]
[1771640469937,1.19439215,628.59,628.3,0.31851179]
[1771640470138,1.19439215,628.59,628.31,0.31851179]
[1771640470342,1.19439215,628.59,628.32,0.31851179]
[1771640470540,1.19439215,628.59,628.33,0.31851179]
[1771640470740,1.19439215,628.59,628.34,0.31851179]
[1771640470935,1.19439215,628.59,628.35,0.31851179]
[1771640471138,1.19439215,628.59,628.36,0.31851179]
[1771640471442,1.19439215,628.59,628.37,0.31851179]
[1771640471741,1.19439215,628.59,628.38,0.31851179]
[1771640471941,1.19439215,628.59,628.39,0.31851179]
[1771640472141,1.19439215,628.59,628.4,0.31851179]
[1771640472338,1.19439215,628.59,628.41,0.31851179]
[1771640472541,1.19439215,628.59,628.42,0.31851179]
[1771640472741,1.19439215,628.59,628.43,0.31851179]
[1771640473039,1.19439215,628.59,628.44,0.31851179]
[1771640473242,1.19439215,628.59,628.45,0.31851179]
[1771640473438,1.19439215,628.59,628.46,0.31851179]
[1771640473641,1.19439215,628.59,628.47,0.31851179]
[1771640473937,1.19439215,628.59,628.48,0.31851179]
[1771640474140,1.19439215,628.59,628.14,1.63]
[1771640474141,1.19439215,628.59,628.49,0.31851179]
[1771640474337,1.19439215,628.59,628.5,0.31851179]
[1771640474539,1.19439215,628.59,628.51,0.31851179]
[1771640474738,1.19439215,628.59,628.52,0.31851179]
[1771640474939,1.19439215,628.59,628.53,0.31851179]
[1771640475243,1.19439215,628.61,628.54,0.31851134]
[1771640475441,1.19439215,628.61,628.55,0.31851134]
[1771640475641,1.19439215,628.61,628.14,1.63]
[1771640475941,1.19439215,628.61,628.15,0.31851127]
[1771640476145,1.19439215,628.61,628.16,0.31851127]
[1771640476343,1.19439215,628.61,628.17,0.31851127]
[1771640476542,1.19439215,628.61,628.18,0.31851127]
[1771640476743,1.19439215,628.61,628.14,1.63]
[1771640482959,1.19439215,628.6,628.14,1.63]
[1771640483654,1.19439215,628.59,628.14,1.63]
[1771640484662,1.19439215,628.57,628.14,1.63]
[1771640490758,1.19439215,628.56,628.14,1.63]
[1771640494161,1.19439215,628.55,628.14,1.63]
[1771640494365,1.19439215,628.56,628.14,1.63]
[1771640495164,1.19439215,628.55,628.14,1.63]
[1771640503175,1.19439215,628.56,628.14,1.63]
[1771640503676,1.19439215,628.58,628.14,1.63]
[1771640506278,1.19439215,628.59,628.14,1.63]
[1771640506578,1.19439215,628.63,628.14,1.63]
[1771640507173,1.19439215,628.64,628.14,1.63]
[1771640513081,1.19439215,628.72,628.14,1.63]
[1771640513280,1.19439215,628.79,628.17,1.18706635]
[1771640514281,1.19439215,628.8,628.16,1.18706635]
[1771640515283,1.19439215,628.8,628.14,2.81706635]
[1771640516285,1.19439215,628.81,628.14,1.63]
[1771640517686,1.19439215,628.77,628.14,1.63]
[1771640517886,1.19439215,628.76,628.14,1.63]
[1771640518083,1.19439215,628.75,628.14,1.63]
[1771640518687,1.19439215,628.75,628.06,1.18706635]
[1771640519488,1.19439215,628.78,628.08,1.18706635]
[1771640524192,1.19439215,628.79,628.08,1.18706635]
[1771640525195,1.19439215,628.8,628.08,1.18706635]
[1771640528693,1.19439215,628.81,628.09,1.18706635]
[1771640528898,1.19439215,628.86,628.14,1.18706635]
[1771640529199,1.19439215,628.86,628.15,1.18706635]
[1771640529493,1.19439215,628.87,628.14,1.18706635]
[1771640530693,1.58385769,628.98,628.03,1.57943396]
[1771640530898,1.18938658,628.87,628.14,1.18480306]
[1771640533400,1.18938658,628.88,628.13,1.18480306]
[1771640536604,1.18938658,628.89,628.14,1.18480306]
[1771640537301,1.18938658,628.89,628.15,1.18480306]
[1771640537504,1.18938658,628.89,628.14,1.18480306]
[1771640538302,1.18938658,628.89,628.15,1.18480306]
[1771640538506,1.18938658,628.89,628.03,1.57943396]
[1771640538507,1.18938658,628.89,628.14,1.18480306]
[1771640539107,1.18938658,628.94,628.2,1.18480306]
[1771640539307,1.18938658,628.97,628.23,1.18480306]
[1771640539508,1.18938658,628.98,628.23,1.18480306]
[1771640542609,1.18938658,628.99,628.22,1.18480306]
[1771640543205,1.18938658,628.98,628.23,1.18480306]
[1771640543409,1.18938658,628.99,628.22,1.18480306]
[1771640544208,1.18938658,628.98,628.23,1.18480306]
[1771640544405,1.18938658,628.99,628.22,1.18480306]
[1771640545209,1.18938658,628.98,628.23,1.18480306]
[1771640545910,1.18938658,628.98,628.22,1.18480306]
[1771640546108,1.18938658,628.94,628.19,1.18480306]
[1771640546306,1.18938658,628.92,628.17,1.18480306]
[1771640547010,1.18938658,628.93,628.18,1.18480306]
[1771640547308,1.18938658,628.93,628.19,1.18480306]
[1771640548209,1.18938658,628.93,628.2,1.18480306]
[1771640550313,1.18938658,628.93,628.21,1.18480306]
[1771640551414,1.18938658,628.92,628.21,1.18480306]
[1771640553311,1.18938658,628.92,628.22,1.18480306]
[1771640554013,0.27685405,629.02,628.1,1.57943396]
[1771640554221,1.19001719,628.91,628.22,1.18514293]
[1771640556214,1.19001719,628.91,628.23,1.18514293]
[1771640556418,1.19001719,628.9,628.23,1.18514293]
[1771640559021,1.19001719,628.89,628.22,1.18514293]
[1771640559322,1.19001719,628.88,628.21,1.18514293]
[1771640559515,1.19001719,628.87,628.21,1.18514293]
[1771640560222,1.19001719,628.88,628.21,1.18514293]
[1771640560422,1.19001719,628.87,628.21,1.18514293]
[1771640561222,1.19001719,628.88,628.21,1.18514293]
[1771640561517,1.19001719,628.87,628.21,1.18514293]
[1771640562222,1.19001719,628.88,628.21,1.18514293]
[1771640562422,1.19001719,628.87,628.21,1.18514293]
[1771640566524,1.19001719,629.02,628.37,1.18514293]
[1771640566723,1.46685912,629.01,628.35,1.18514293]
[1771640569429,1.46685912,629.01,628.34,1.18514293]
[1771640569926,1.19001719,628.95,628.28,1.18514293]
[1771640571328,1.19001719,628.95,628.29,1.18514293]
[1771640572328,1.19001719,628.94,628.29,1.18514293]
[1771640577333,1.19001719,628.94,628.3,1.18514293]
[1771640578332,1.19001719,628.93,628.3,1.18514293]
[1771640579534,1.19001719,628.93,628.18,1.57943396]
[1771640579535,1.19001719,628.93,628.29,1.18514293]
[1771640581535,1.19001719,628.92,628.3,1.18514293]
[1771640583342,1.19001719,628.87,628.25,1.18514293]
[1771640583742,1.19001719,628.85,628.23,1.18514293]
[1771640585446,1.19001719,628.82,628.19,1.18514293]
[1771640588644,1.19001719,628.81,628.18,1.18514293]
[1771640588942,1.19001719,628.67,628.11,1.527]
[1771640589341,1.19001719,628.68,628.11,1.527]
[1771640590346,1.19001719,628.69,628.11,1.527]
[1771640591343,1.19001719,628.7,628.11,1.527]
[1771640591846,1.19001719,628.69,628.11,1.527]
[1771640592347,1.19001719,628.7,628.11,1.527]
[1771640593246,1.58385769,628.82,628.11,1.527]
[1771640593247,1.19001719,628.69,628.11,1.527]
[1771640593448,1.19001719,628.68,628.11,1.527]
[1771640594349,1.19001719,628.69,628.11,1.527]
[1771640595344,1.19001719,628.68,628.11,1.527]
[1771640596449,1.19001719,628.69,628.11,1.527]
[1771640597350,1.19001719,628.7,628.11,1.527]
[1771640598351,1.19001719,628.71,628.11,1.527]
[1771640600354,1.19001719,628.72,628.11,1.527]
[1771640602554,1.19001719,628.73,628.11,1.527]
[1771640605453,1.19001719,628.72,628.11,1.527]
[1771640607352,1.19001719,628.73,628.11,1.527]
[1771640608357,1.19001719,628.73,627.85,1.18514293]
[1771640608557,1.19001719,628.73,627.84,1.46203112]
[1771640609657,1.19001719,628.7,627.84,0.27688819]
[1771640610354,1.19001719,628.71,627.84,0.27688819]
[1771640610857,1.19001719,628.71,627.85,1.383]
[1771640612360,1.19001719,628.7,627.85,1.383]
[1771640614364,1.19001719,628.69,627.85,1.383]
[1771640615364,1.19001719,628.71,627.85,1.383]
[1771640616461,1.19001719,628.71,627.85,2.56814293]
[1771640617366,1.19001719,628.7,627.85,2.56814293]
[1771640618368,1.19001719,628.7,627.86,1.18514293]
[1771640619367,1.19001719,628.69,627.86,1.18514293]
[1771640620466,1.19001719,628.69,627.85,1.383]
[1771640620467,1.19001719,628.69,627.87,1.18514293]
[1771640621369,1.19001719,628.68,627.87,1.18514293]
[1771640622372,1.19001719,628.67,627.88,1.18514293]
[1771640623371,1.19001719,628.67,627.89,1.18514293]
[1771640624367,1.19001719,628.66,627.9,1.18514293]
[1771640625667,1.19001719,628.66,627.91,1.399]
[1771640626469,1.19001719,628.65,627.91,1.399]
[1771640626772,1.19001719,628.64,627.91,2.58414293]
[1771640627371,1.19001719,628.63,627.92,1.18514293]
[1771640628373,1.19001719,628.62,627.93,1.18514293]
[1771640629370,1.19001719,628.61,627.94,1.18514293]
[1771640630477,1.19001719,628.6,627.95,1.18514293]
[1771640631476,1.19001719,628.59,627.96,1.18514293]
[1771640632578,1.19001719,628.58,627.97,1.18514293]
[1771640633376,1.19001719,628.55,628.0,1.18514293]
[1771640636479,1.19001719,628.55,628.01,1.18514293]
[1771640637080,1.19001719,628.57,628.03,1.18514293]
[1771640637379,1.19001719,628.56,628.03,1.18514293]
[1771640641280,1.19001719,628.55,628.02,1.18514293]
[1771640648982,1.19001719,628.55,627.91,2.97843396]
[1771640648983,1.19001719,628.58,628.04,1.18514293]
[1771640649183,1.19001719,628.7,628.17,1.18514293]
[1771640649382,1.19001719,628.73,628.15,1.18514293]
[1771640650384,1.19001719,628.74,628.14,1.18514293]
[1771640651288,1.19001719,628.75,628.13,1.18514293]
[1771640652387,1.19001719,628.76,628.12,1.18514293]
[1771640652789,1.19001719,628.73,628.09,1.18514293]
[1771640653088,1.19001719,628.7,628.06,1.18514293]
[1771640656286,1.19001719,628.71,628.06,1.18514293]
[1771640657288,1.19001719,628.71,628.05,1.18514293]
[1771640663294,1.58385769,628.82,628.04,1.18514293]
[1771640663295,1.19001719,628.7,628.04,1.18514293]
[1771640667102,1.19001719,628.7,628.05,1.526]
[1771640669604,1.19001719,628.35,628.05,1.526]
[1771640669802,1.19001719,628.32,628.05,1.526]
[1771640670304,3.97761895,629.0,628.05,1.526]
[1771640670305,1.19001719,628.35,628.05,1.526]
[1771640670503,1.19001719,628.31,628.05,1.526]
[1771640671201,1.19001719,628.33,628.05,1.526]
[1771640672305,1.19001719,628.34,628.05,1.526]
[1771640672506,1.19001719,628.35,628.05,1.526]
[1771640673204,1.19001719,628.36,628.05,1.526]
[1771640674309,1.19001719,628.37,628.05,1.526]
[1771640676212,1.19001719,628.38,628.05,1.526]
[1771640677212,1.19001719,628.39,628.05,1.526]
[1771640678416,1.19001719,628.4,628.05,1.526]
[1771640680215,1.19001719,628.41,628.05,1.526]
[1771640681317,1.19001719,628.42,628.05,1.526]
[1771640683418,1.19001719,628.43,628.05,1.526]
[1771640687325,1.19001719,628.44,628.05,1.526]
[1771640691224,1.19001719,628.45,628.05,1.526]
[1771640695228,1.19001719,628.43,628.05,1.526]
[1771640697233,1.19001719,628.42,628.05,1.526]
[1771640699935,1.19001719,628.41,628.05,1.526]
[1771640701234,1.19001719,628.4,628.05,1.526]
[1771640703237,1.19001719,628.39,628.05,1.526]
[1771640704339,1.19001719,628.38,628.05,1.526]
[1771640705337,1.19001719,628.33,628.05,1.526]
[1771640706341,1.19001719,628.32,628.05,1.526]
[1771640707242,1.19001719,628.31,627.52,0.27704911]
[1771640707639,1.19001719,628.32,627.52,0.27704911]
[1771640708239,1.19001719,628.31,627.52,0.27704911]
[1771640709445,1.19001719,628.29,627.52,0.27704911]
[1771640710242,1.19001719,628.28,627.52,0.27704911]
[1771640710542,1.19001719,628.28,627.53,1.209]
[1771640711546,1.18943038,628.26,627.53,1.209]
[1771640712244,1.18943038,628.25,627.53,2.39792217]
[1771640713248,1.18943038,628.22,627.56,1.18892217]
[1771640713545,1.18943038,628.25,627.59,1.18892217]
[1771640713744,1.18943038,628.26,627.6,1.18892217]
[1771640714245,1.18943038,628.2,627.66,1.18892217]
[1771640715247,1.18943038,628.21,627.66,1.18892217]
[1771640715452,1.18943038,628.27,627.73,1.18892217]
[1771640715850,1.18943038,628.27,627.72,1.18892217]
[1771640716053,1.18943038,628.29,627.74,1.18892217]
[1771640716454,1.18943038,628.32,627.76,1.18892217]
[1771640718155,1.18943038,628.33,627.75,1.18892217]
[1771640720256,1.18943038,628.34,627.74,1.18892217]
[1771640723261,1.18943038,628.35,627.74,1.18892217]
[1771640727159,1.18943038,628.35,627.73,1.18892217]
[1771640727360,1.18943038,628.36,627.73,1.18892217]
[1771640729970,1.18943038,628.36,627.74,1.18892217]
[1771640730268,1.18943038,628.36,627.73,1.18892217]
[1771640732475,1.18943038,628.36,627.74,1.136]
[1771640740182,1.18943038,628.37,627.74,2.32492217]
[1771640746588,1.18943038,628.36,627.74,2.32492217]
[1771640749289,1.18943038,628.36,627.75,1.18892217]
[1771640751290,1.18943038,628.35,627.75,1.18892217]
[1771640752389,1.58385769,628.46,627.74,1.136]
[1771640752588,1.19303048,628.35,627.75,1.19051928]
[1771640753288,1.19303048,628.35,627.76,1.19051928]
[1771640755193,1.19303048,628.34,627.76,1.19051928]
[1771640756288,1.19303048,628.34,627.77,1.19051928]
[1771640757489,1.19303048,628.32,627.76,1.19051928]
[1771640758392,1.19303048,628.32,627.77,1.19051928]
[1771640759187,1.19303048,628.31,627.77,1.19051928]
[1771640760288,1.19303048,628.31,627.78,1.19051928]
[1771640768797,1.19303048,628.3,627.77,1.19051928]
[1771640770997,1.19303048,628.29,627.76,1.19051928]
[1771640771301,1.19303048,628.3,627.76,1.19051928]
[1771640776902,1.19303048,628.3,627.77,0.31862988]
[1771640777105,1.19303048,628.3,627.78,0.31862988]
[1771640777305,1.19303048,628.3,627.79,0.31862988]
[1771640777501,1.19303048,628.3,627.8,0.31862988]
[1771640777707,1.19303048,628.3,627.81,0.31862988]
[1771640777906,1.19303048,628.3,627.82,0.31862988]
[1771640778101,1.19303048,628.3,627.83,0.31862988]
[1771640778301,1.19303048,628.3,627.76,1.19051928]
[1771640778302,1.19303048,628.3,627.84,0.31862988]
[1771640778505,1.19303048,628.3,627.85,0.31862988]
[1771640778703,1.19303048,628.3,627.86,0.31862988]
[1771640778907,1.19303048,628.3,627.87,0.31862988]
[1771640779105,1.19303048,628.3,627.88,0.31862988]
[1771640779306,1.19303048,628.3,627.89,0.31862988]
[1771640779605,1.19303048,628.3,627.9,0.31862988]
[1771640779804,1.19303048,628.3,627.91,0.31862988]
[1771640780009,1.19303048,628.3,627.92,0.31862988]
[1771640780308,1.19303048,628.3,627.93,0.31862988]
[1771640780508,1.19303048,628.3,627.94,0.31862988]
[1771640780708,1.19303048,628.3,627.95,0.31862988]
[1771640781006,1.19303048,628.3,627.96,0.31862988]
[1771640781207,1.19303048,628.3,627.97,0.31862988]
[1771640781405,1.19303048,628.3,627.98,0.31862988]
[1771640781608,1.19303048,628.3,627.99,0.31862988]
[1771640781808,1.19303048,628.3,628.0,0.31862988]
[1771640782008,1.19303048,628.3,628.01,0.31862988]
[1771640782309,1.19303048,628.3,628.02,0.31862988]
[1771640782503,1.19303048,628.3,628.03,0.31862988]
[1771640782707,1.19303048,628.3,628.04,0.31862988]
[1771640782906,1.19303048,628.3,628.05,0.31862988]
[1771640783208,1.19303048,628.3,628.06,0.31862988]
[1771640783406,1.19303048,628.3,628.07,0.31862962]
[1771640783611,1.19303048,628.3,628.08,0.31862962]
[1771640783910,1.19303048,628.3,628.09,0.31862962]
[1771640784106,1.19303048,628.3,628.1,0.31862962]
[1771640784406,1.19303048,628.3,628.11,0.31862962]
[1771640784606,1.19303048,628.3,628.12,0.31862962]
[1771640784808,1.19303048,628.3,628.13,0.31862962]
[1771640785009,1.19303048,628.3,628.14,0.31862962]
[1771640785309,1.19303048,628.3,628.15,0.31862962]
[1771640785606,1.19303048,628.3,628.16,0.31862962]
[1771640785907,1.19303048,628.3,628.17,0.31862962]
[1771640786107,1.19303048,628.3,628.18,0.31862962]
[1771640786310,1.19303048,628.3,627.76,1.19051928]
[1771640786311,1.19303048,628.3,628.19,0.31862962]
[1771640786511,1.19303048,628.3,628.2,0.31862962]
[1771640786810,1.19303048,628.3,628.21,0.31862962]
[1771640787109,1.19303048,628.3,628.22,0.31862962]
[1771640787310,1.19303048,628.3,628.23,0.31862962]
[1771640787510,1.19303048,628.3,628.24,0.31862962]
[1771640787710,1.19303048,628.3,628.25,0.31862962]
[1771640787910,1.19303048,628.3,628.26,0.31862962]
[1771640788110,1.19303048,628.3,628.27,0.31862962]
[1771640788310,1.19303048,628.3,628.28,0.31862962]
[1771640788508,1.19303048,628.3,628.29,0.31862962]
[1771640789915,1.19303048,628.31,628.29,0.31862962]
[1771640790115,1.19303048,628.31,628.3,0.31862962]
[1771640795320,0.27705462,628.54,628.3,0.31862962]
[1771640795321,1.58385769,628.35,628.3,0.31862962]
[1771640795519,1.58385769,628.35,628.07,1.536]
[1771640795715,1.19429583,628.23,628.08,0.31862975]
[1771640796014,1.19429583,628.23,628.09,0.31862975]
[1771640796219,1.19429583,628.23,628.1,0.31862975]
[1771640796515,1.19429583,628.23,628.11,0.31862975]
[1771640796715,1.19429583,628.23,628.12,0.31862975]
[1771640796915,1.19429583,628.23,628.13,0.31862975]
[1771640797119,1.19429583,628.23,628.14,0.31862975]
[1771640797320,1.19429583,628.23,628.15,0.31862975]
[1771640797615,1.19429583,628.23,628.16,0.31862975]
[1771640797819,1.19429583,628.23,628.17,0.31862975]
[1771640798019,1.19429583,628.23,628.18,0.31862975]
[1771640798219,1.19429583,628.23,628.19,0.31862975]
[1771640798419,1.19429583,628.23,628.2,0.31862975]
[1771640798719,1.19429583,628.23,628.21,0.31862975]
[1771640799019,1.19429583,628.23,628.22,0.31862975]
[1771640801521,1.19429583,628.23,628.07,1.536]
[1771640801724,1.19463749,628.12,628.08,0.31868382]
[1771640801924,1.19463749,628.12,628.09,0.31868382]
[1771640802125,1.19463749,628.12,628.1,0.31868382]
[1771640802322,1.19463749,628.13,628.11,0.31868382]
[1771640802527,1.19463749,628.13,628.12,0.31868382]
[1771640803327,1.19463749,628.14,628.12,0.31868382]
[1771640803624,1.19463749,628.14,628.13,0.31868382]